Workbook

Sheet Cover Page
D1: Add company logo
N2: Version 20.1
B8: Add photo
N13: Notes:
N14: This template may require adjustments by individual operators to meet specific reporting requirements as defined in the site Permit(s)
B29: Annual Performance Report 2021
B31: Permit EPR/AP3835SM
B33: Wolverhampton Energy from Waste Facility
B35: MES Environmental Ltd.
B39: Year: | C39: 2021
B41: Address: | C41: MES Environmental Ltd, Crown Street, Wolverhampton, WV1 1QB
B43: Tel: | C43: 01902 458888
B45: Email: | C45: mes@mesenvironmental.co.uk
B47: Prepared by: | C47: J Purnell | F47: Position: | G47: Environmental Consultant
B49: Approved by: | C49: S Danieli | F49: Position: | G49: Managing Director
B51: Version: | C51: 1
B53: Issue Date: | C53: 2022-01-31

Sheet Contents
A1: =+'Cover Page'!$B$29 -> Annual Performance Report 2021 | E1: =+'Cover Page'!$B$33 -> Wolverhampton Energy from Waste Facility
A3: Contents | K3: Notes:
B4: Subject | H4: Page | K4: Section references and Page nos. to be inserted
B5: Facility Information | H5: 4 | K5: Sections and Subjects may require adjustment by individual operators to meet specific reporting requirements as defined in the sites Permit(s)
B6: Operational Data | H6: 5
B7: Operational Summary | H7: 7
B8: Performance Form 1 | H8: 8
B9: Energy Form 1 | H9: 10
B10: Permit Compliance | H10: 11
B11: Improvements | H11: 12
B12: Public Liaison | H12: 13
B13: Residue Quality - Optional | H13: 14
B14: Emissions to Water | H14: 15
B15: Emissions to Air (periodically monitored) | H15: 16
B16: Emissions to Air (continuously monitored) | H16: 17
B17: Hydrogen Chloride emissions | H17: 19
B18: Sulphur Dioxide emissions | H18: 20
B19: Oxides of Nitrogen emissions | H19: 21
B20: Total Organic Carbon emissions | H20: 22
B21: Particulate Matter emissions | H21: 23
B22: Carbon Monoxide emissions | H22: 24
B23: Ammonia emissions | H23: 25
A26: Version Control
A27: Section | B27: Information | H27: Date
A34: Distribution
A35: Copy | B35: Name, Role | H35: No.
A44: This report is required under the Industrial Emissions Directive’s Article 55(2) requirements on reporting and public information on waste incineration plants and co-incineration plants, which require the operator to produce an annual report on the functioning and monitoring of the plant and make it available to the public.

Sheet Facility Info
A1: =+'Cover Page'!$B$29 -> Annual Performance Report 2021 | E1: =+'Cover Page'!$B$33 -> Wolverhampton Energy from Waste Facility
A3: Plant Description and Design | K3: Notes:
A5: The installation provides a sustainable method of waste disposal and recovery, predominantly for the area within the administrative boundary of Wolverhampton Metropolitan Borough Council, with smaller quantities of wastes accepted, where capacity and demand exists, from other local authorities within the general vicinity of the plant. With two combustion lines operating with a combined capacity of up to 14 tonnes per hour, the facility is able to process a maximum of around 118,000 tonnes of waste per year, providing an effective alternative for sending the waste to landfill. Heat produced during the incineration process is converted to electrical energy by generating steam in high-pressure boilers and expanding the steam through a steam turbine. When operating at full load, the plant will typically generate around 8 MW of electricity and, after satisfying its own power needs, exports approximately 7.1 MW of electricity to the grid. | K5: Include summary of plant design, design capacity, no. of combustion lines, electrical and heat capacity and any other general information that describes the facility, its location and purpose
A20: Summary of Operational Processes and Procedures
A22: The Plant is regulated under the terms of a Permit issued by the Environment Agency (reference AP3835SM) which contains conditions to ensure that the requirements of the Waste Incineration Directive are incorporated and will be met. MES Environmental operates all of its sites under an Integrated Management System certified to ISO 14001:2015 (environmental management), ISO 9001:2015 (quality management), and ISO 45001:2018 (health and safety management). The company also maintains the globally recognised RoSPA Gold standard award, all of which helps to ensure that the company operates responsibly, safely, and efficiently, with regard to all of its operations. In terms of plant operation, the incineration processes have been designed against the background of a detailed assessment of the prevailing environmental conditions at the site location, and are based upon the Best Available Technology (BAT) as detailed both in the original Authorisation application and the application for the Permit issued under the Pollution Prevention and Control (England and Wales) Regulations. These include, but are not limited to, the following: • Well proven process plant developed specifically for incineration of municipal solid wastes • Efficient, comprehensive process control and monitoring systems to ensure optimum conditions for complete combustion of the wastes and to minimise emissions from the processes • Operations confined within buildings under slight negative pressure in order to contain and minimise emissions such as dust and odour • Qualified and experienced operating and maintenance personnel to implement procedures to ensure that the required high standards are maintained. Operating and Maintenance Procedures are established according to an internationally recognised system of quality assurance • Multi-stage high efficiency flue gas cleaning systems comprising deNOx Selective Non-Catalytic Reduction (SNCR) for the removal of oxides of nitrogen, activated carbon and lime semi-dry acid gas scrubbing for controlling acid gas, dioxins/furans and mercury emissions • Final stage flue gas abatement for particulate materials using fabric filtration • Residues from the combustion process and from the flue gas cleaning system disposed of by approved means, maximising recycling wherever possible • Waste water from the process is neutralised and recycled as far as is practicable to minimise the quantities released to sewers • Provision of bunds or double skinned vessels for storage of fuel and chemicals in order to prevent accidental and inappropriate discharge to the public sewers and watercourse | K22: Include summary of key processes and procedures such as (but not limited to); waste reception, control rooms, grate, bed and boiler, energy & heat generation, cooling systems, residue management, emission controls, health and safety systems, maintenance

Sheet Operational Data
A1: =+'Cover Page'!$B$29 -> Annual Performance Report 2021 | E1: =+'Cover Page'!$B$33 -> Wolverhampton Energy from Waste Facility
A3: Operational Data | K3: Notes:
A4: Plant Size | B4: 118000 | D4: tonnes pa | E4: 0 | F4: MWth | G4: 8 | H4: MWe | K4: * - RDF to include SRF
A5: No. of combustion lines | B5: 2 | D5: No. of Turbines: | F5: 1 | K5: ** - CHP plants only
K6: 2020 updates include; heat in MWh, water in Litres, NCV in MJ/kg
A7: Waste types received | B7: Unit | C7: Q1 | D7: Q2 | E7: Q3 | F7: Q4 | G7: Year Total | H7: %
A8: Household / Local Authority | B8: tonnes | C8: 28097.78603 | D8: 29283.02336 | E8: 25199.86944 | F8: 28275.37074 | G8: =SUM(C8:F8) -> 110856.0496 | H8: =IF(G8>0,G8/$G$18,"-") -> 0.990343225 | K8: Availabiity Definition: 'the availability of a line is to be calculated by the number of hours the line reported Continuously Monitored emission levels to the Regulator through the calendar year divided by the total number of hours in that year. The overall plant availability is calculated as the Mean of all lines in the plant. For clarity this includes periods of Other Than Normal Operating Conditions (OTNOC) and abnormal operation.' Rationale: The primary function of an Energy from Waste facility is the disposal of waste. It follows therefore that the availability of a plant is determined by the period of time a facility spends undertaking this activity.
A9: Commercial & Industrial | C9: 368.2139687 | D9: 63.97664279 | E9: 223.1305586 | F9: 425.6292557 | G9: =SUM(C9:F9) -> 1080.950426 | H9: 0.009656775023
A10: Hazardous | C10: 0 | D10: 0 | E10: 0 | F10: 0 | G10: 0 | H10: -
A11: Clinical | C11: 0 | D11: 0 | E11: 0 | F11: 0 | G11: 0 | H11: -
A12: Waste wood (biomass) | C12: 0 | D12: 0 | E12: 0 | F12: 0 | G12: 0 | H12: -
A13: Refuse Derived Fuel * - H'hold/LA | C13: 0 | D13: 0 | E13: 0 | F13: 0 | G13: =SUM(C13:F13) -> 0 | H13: -
A14: Refuse Derived Fuel * - C&I | C14: 0 | D14: 0 | E14: 0 | F14: 0 | G14: 0 | H14: -
A15: Other [Please specify] | C15: 0 | D15: 0 | F15: 0 | G15: 0 | H15: -
A16: Other [Please specify] | C16: 0 | D16: 0 | E16: 0 | F16: 0 | G16: 0 | H16: -
A17: Other [Please specify] | C17: 0 | D17: 0 | E17: 0 | F17: 0
A18: Total waste received | C18: =SUM(C8:C17) -> 28466 | D18: =SUM(D8:D17) -> 29347 | E18: =SUM(E8:E17) -> 25423 | F18: =SUM(F8:F17) -> 28701 | G18: =SUM(G8:G17) -> 111937 | H18: 1
A19: Rejected Waste | C19: 0 | D19: 0 | E19: 0 | F19: 0 | G19: =SUM(C19:F19) -> 0 | H19: =IF(G19>0,G19/$G$18,"-") -> -
A20: Unprocessed waste transferred out | C20: 0 | D20: 0 | E20: 0 | F20: 0 | G20: 0 | H20: =IF(G20>0,G20/$G$18,"-") -> -
A21: Total waste combusted | C21: =C18-SUM(C19:C20) -> 28466 | D21: =D18-SUM(D19:D20) -> 29347 | E21: 25423 | F21: 28701 | G21: =SUM(C21:F21) -> 111937 | H21: =IF(G21>0,G21/$G$18,"-") -> 1
A23: Energy Usage / Export | B23: Unit | C23: Q1 | D23: Q2 | E23: Q3 | F23: Q4 | G23: Year Total | H23: KWh/te
A24: Power Generated | B24: MWh | C24: 11864 | D24: 12655 | E24: 10430 | F24: 11440 | G24: =SUM(C24:F24) -> 46389 | H24: =IF(G24>0,G24*1000/$G$21,"-") -> 414.4206116
A25: Power Exported | C25: 9756 | D25: 10305 | E25: 8439 | F25: 9259 | G25: =SUM(C25:F25) -> 37759 | H25: =IF(G25>0,G25*1000/$G$21,"-") -> 337.3236731
A26: Power Used on site | C26: 2108 | D26: 2350 | E26: 1992 | F26: 2181 | G26: =SUM(C26:F26) -> 8631 | H26: =IF(G26>0,G26*1000/$G$21,"-") -> 77.10587205
A27: Power Imported | C27: 142.2 | D27: 100.9 | E27: 120.7 | F27: 131.5 | G27: 495.3 | H27: =IF(G27>0,G27*1000/$G$21,"-") -> 4.424810384
A28: Parasitic Load | B28: % | C28: =IF(C24>0,1-C25/(C24+C27),"-") -> 0.1874198331 | D28: =IF(D24>0,1-D25/(D24+D27),"-") -> 0.1921385398 | E28: =IF(E24>0,1-E25/(E24+E27),"-") -> 0.2001478575 | F28: =IF(F24>0,1-F25/(F24+F27),"-") -> 0.1998444454 | G28: =IF(G24>0,1-G25/(G24+G27),"-") -> 0.1946344512
A29: Thermal Energy Produced ** | B29: MWh | C29: 0 | D29: 0 | E29: 0 | F29: 0 | G29: =SUM(C29:F29) -> 0 | H29: =IF(G29>0,G29*1000/$G$18,"-") -> -
A30: Thermal Energy Exported ** | C30: 0 | D30: 0 | E30: 0 | F30: 0 | G30: 0 | H30: -
A31: R1 value | C31: n/a | G31: Design / Operational / n/a
A33: Waste Disposal & Recovery | B33: Unit | C33: Q1 | D33: Q2 | E33: Q3 | F33: Q4 | G33: Year Total | H33: % inputs
A34: APC Residues - produced | B34: tonnes | C34: 772 | D34: 774 | E34: 844 | F34: 771 | G34: =SUM(C34:F34) -> 3161 | H34: =IF(G34>0,G34/$G$21,"-") -> 0.02823909878
A35: IBA - produced | C35: 4224 | D35: 4998 | E35: 4130 | F35: 4508 | G35: 17860 | H35: =IF(G35>0,G35/$G$21,"-") -> 0.1595540349
A36: Metals recycling | C36: 396 | D36: 410 | E36: 348 | F36: 396 | G36: =SUM(C36:F36) -> 1550 | H36: =IF(G36>0,G36/$G$21,"-") -> 0.01384707469
A37: Other | C37: 0 | D37: 0 | E37: 0 | F37: 0 | G37: =SUM(C37:F37) -> 0 | H37: =IF(G37>0,G37/$G$18,"-") -> -
A38: Other | C38: 0 | D38: 0 | E38: 0 | F38: 0 | G38: 0 | H38: =IF(G38>0,G38/$G$18,"-") -> -
A39: Other | C39: 0 | D39: 0 | E39: 0 | F39: 0 | G39: 0 | H39: =IF(G39>0,G39/$G$18,"-") -> -
A41: Raw Material Usage | B41: Unit | C41: Q1 | D41: Q2 | E41: Q3 | F41: Q4 | G41: Year Total | H41: kg or Ltr /te
A42: Mains Water | B42: ltrs | C42: 10450 | D42: 11253 | E42: 8315 | F42: 10122 | G42: =SUM(C42:F42) -> 40140 | H42: =IF(G42>0,G42/$G$21,"-") -> 0.3585945666
A43: Other Water | B43: ltrs | C43: 0 | D43: 0 | E43: 0 | F43: 0 | G43: 0 | H43: -
A44: Ammonia | B44: kgs | C44: 0 | D44: 0 | E44: 0 | F44: 0 | G44: 0 | H44: -
A45: Urea | B45: kgs | C45: 53000 | D45: 66000 | E45: 46000 | F45: 45000 | G45: =SUM(C45:F45) -> 210000 | H45: 1.876055281
A46: Activated Carbon | B46: kgs | C46: 2000 | D46: 0 | E46: 4000 | F46: 5000 | G46: 11000 | H46: 0.09826956234
A47: Lime / hydrated lime | B47: kgs | C47: 173000 | D47: 201000 | E47: 228000 | F47: 231000 | G47: 833000 | H47: 7.441685948
A48: Fuel oil | B48: ltrs | C48: 28329 | D48: 21100 | E48: 42665 | F48: 34648 | G48: 126742 | H48: 1.132261897
A49: Gas | B49: cf | C49: 0 | D49: 0 | E49: 0 | F49: 0 | G49: 0
A50: Other | C50: 0 | D50: 0 | E50: 0 | F50: 0 | G50: 0
A52: Summary | B52: Line/Unit | C52: Q1 | D52: Q2 | E52: Q3 | F52: Q4 | G52: Year Total | J52: Hrs in year
A53: Availability of waste combustion by line, hrs | B53: 1 | C53: 2082.5 | D53: 2175 | E53: 1739.25 | F53: 1945.5 | G53: =SUM(C53:F53) -> 7942.25 | H53: 0.9066 | J53: 8760
B54: 2 | C54: 1884 | D54: 2176.5 | E54: 1835 | F54: 2153 | G54: 8048.5 | H54: 0.9188
A58: Overall Availability, mean avg. of all lines, hrs | C58: =AVERAGE(C53:C54) -> 1983.25 | D58: =AVERAGE(D53:D54) -> 2175.75 | E58: 1787.125 | F58: 2049.25 | G58: =AVERAGE(G53:G54) -> 7995.375 | H58: =AVERAGE(H53:H54) -> 0.9127
A59: Hours of turbine operations, hrs | B59: 1 | C59: 1974 | D59: 2080.5 | E59: 1859.25 | F59: 2052.1 | G59: 7965.85 | H59: 0.9093
A62: Net Calorific Value of waste | B62: MJ/kg | C62: 7.8 | D62: 8.58 | E62: 7.96 | F62: 8.15 | H62: -
A63: Abnormal Events | B63: qty. | C63: 0 | D63: 0 | E63: 1 | F63: 1 | G63: 2 | H63: =IF(G63>0,"yes","no") -> yes
A64: Abnormal operation | B64: hours | C64: 0 | D64: 0 | E64: 0.5 | F64: 0.5 | G64: 1 | H64: =+(G64)/J53 -> 0.0001141552511
A65: Permit Breaches | B65: qty. | C65: 2 | D65: 0 | E65: 2 | F65: 2 | G65: 6 | H65: =IF(G65>0,"yes","no") -> yes

Sheet Operational Summary
A1: =+'Cover Page'!$B$29 -> Annual Performance Report 2021 | E1: =+'Cover Page'!$B$33 -> Wolverhampton Energy from Waste Facility
A3: Summary of Plant Operations and Maintenance during the reporting year | K3: Notes:
A5: • As with 2020, 2021 has been a challenging year with direct and indirect effects of COVID-19. The main challenges were with the availability of parts, service suppliers and our own staff suffering infections or self-isolating due to infection of family members. Through the implementation of stringent control measures, the plant was able to perform well with regard to waste throughput, availability and electricity production. Despite of the pandemic, 2021 statutory inspections were performed as required, and increased COVID-19 control measures were introduced during the outage periods to ensure worker and contractor safety. • In 2021 tube leaks have been the main reason of boiler unavailability in Wolverhampton followed by common parts issues (i.e. electrical failure, steam leaks and failed valves). The overall boiler availability for the year was 91%. The turbine unavailability has been mainly triggered by boilers and common part issues (i.e. electrical failure, steam leaks and failed valves) and issues with the vacuum level. The overall turbine availability for the year was 91%. • Extensive scheduled maintenance was undertaken at the plants annual planned shutdown period: o Boilers thorough inspections performed. Thin pipes and worn refractory renewed. o Soot blowers and air hammers inspected and maintained. o Combustion system thoroughly inspected and worn parts replaced. o Auxiliary burners inspected and serviced. o Hydraulic packs serviced. o Both boiler pressure relief valves, as well as common vessels and main valves inspected / serviced. o Bag house filters and scrubbers cleaned, inspected and repaired where needed. The program of bags replacement continued. o Ducting and expansion joints inspections and repairs made. o Fly ash and bottom ash conveyors inspected and serviced. o Lime, urea and activated carbon systems cleaned and inspected. o Main fans and pumps inspected and serviced. The main electrical motors have been tested. o Main instrumentation calibrated. o Turbine, generator and gearbox serviced. Turbine blading borescope inspection carried out. Generator electrical test performed. o Main electrical systems inspected and tested. Specific additional works completed during the annual shutdown: o The sealing boxes of the roof of the 2nd pass of boiler 1 have been refurbished, including the sealing concrete. o In boiler 1 have been replaced the feed table with castings, a large section of the feed chute and the “transition piece” of the ash discharger. o The top of the cone of scrubber 1 have been externally inspected and the trace heating system renewed where needed. o The alignment of the turbine train has been checked and corrected. Significant works completed outside the annual shutdown: o Replacement of the 11/33 kV transformer Neutral Earthing Resistor. o Service of the tap changer. o 11/33 kV transformer inspection. o Testing of the protection relays. o 11 kV and 33 kV switchgears inspection and maintenance. o External repairs to the concrete of the wind shield of the stack. o Full refurbishment of the waste bunker roof. • About health & safety: o The fume extraction system for use by welders during boiler internal repairs has been improved and consolidated. o The program of fitting spring-loaded gates instead of chains on vertical ladders continues. o The installation of additional power supplies to reduce the amount of trailing leads during shutdowns continues. • Site security has been largely improved by mean of fencing, LED lamps and magnetic locks to the main access doors to the plant. | K5: Include summary of key operational and/or mainteanance activity undertaken in the year, such as any major component upgrades and/or replacements
A29: Summary of Residue Handling for the reporting year
A31: There are two main sources of residue that arise from the operation of the plant; Incinerator Bottom ash (IBA) (which also includes ferrous metals discharged within the ash), and residues from the flue gas treatment system - known as Air Pollution Control residue (APCr). Residues from the flue gas treatment process (APCr) are discharged into an enclosed system which feed into double-skinned heavy-duty bags prior to removal from site for controlled treatment and disposal. These residues account for around 5% of the total weight of all refuse processed by the facility. The bottom ash produced by the site represents around 10% of the original volume of the refuse processed, and around 20% of its weight. Bottom ash residues are discharged from the lower end of each grate into a water filled ash discharger, where it is quenched and then ejected onto a conveyor system. Larger items are screened out and ferrous metals are removed via magnetic separation. The resulting material is stored in the storage bunkers prior to removal from site for recycling - the storage capacity for bottom ash residues and separated ferrous metals is sufficient to ensure 4 days storage. Collections for delivery to further processing or treatment sites are made on Mondays to Fridays and are scheduled to ensure sufficient storage capacity is maintained at all times. Collections are available at weekends if operational conditions require this facility. Bottom ash is now widely used in the UK and Europe as a substitute for valuable primary aggregate materials in the construction of roads and embankments. Bottom ash from MES Environmental is currently being reprocessed, with additional ferrous and trace metals being removed, and the remaining material being further processed into usable aggregate in a zero to landfill process. | K31: Include in here a summary of residue handling regimes and destinations

Sheet Perf. Form 1
A1: =+'Cover Page'!C39 -> 2021 | B1: Annual Reporting Performance Form 1
A3: =+'Cover Page'!B31 -> Permit EPR/AP3835SM | F3: Operator: | G3: MES Environmental
A4: Facility: | B4: =+'Cover Page'!B33:I33 -> Wolverhampton Energy from Waste Facility | F4: Form: | G4: Performance 1
A6: Reporting Period from: | D6: 2021-01-01 | F6: to: | G6: 2021-12-31
A8: =+A1 -> 2021 | B8: Annual Reporting of Waste Disposal and Recovery
A9: Waste Description | C9: Disposal Route(s) | E9: Disposal Tonnes | G9: Recovery Tonnes | I9: % / tonne of waste incinerated
A10: 1) Hazardous Wastes
A11: APC Residues | C11: D13 | E11: ='Operational Data'!G34 -> 3161 | I11: =IF((E11+G11)>0,(E11+G11)/'Operational Data'!$G$21, "-") -> 0.02823909878
A12: IBA | I12: =IF((E12+G12)>0,(E12+G12)/'Operational Data'!$G$21, "-") -> -
I13: =IF((E13+G13)>0,(E13+G13)/'Operational Data'!$G$21, "-") -> -
I14: =IF((E14+G14)>0,(E14+G14)/'Operational Data'!$G$21, "-") -> -
A15: Total Hazardous Waste | E15: =SUM(E11:F14) -> 3161 | G15: =SUM(G11:H14) -> 0 | I15: =IF((E15+G15)>0,(E15+G15)/'Operational Data'!$G$21, "-") -> 0.02823909878
A17: 2) Non-Hazardous Wastes
A18: IBA | C18: R04 | G18: ='Operational Data'!G35 -> 17860 | I18: =IF((E18+G18)>0,(E18+G18)/'Operational Data'!$G$21, "-") -> 0.1595540349
A19: Ferrous Metal | C19: R04 | G19: ='Operational Data'!G36 -> 1550 | I19: =IF((E19+G19)>0,(E19+G19)/'Operational Data'!$G$21, "-") -> 0.01384707469
A20: Process Water | E20: 80 | I20: =IF((E20+G20)>0,(E20+G20)/'Operational Data'!$G$21, "-") -> 0.0007146877261
I21: =IF((E21+G21)>0,(E21+G21)/'Operational Data'!$G$21, "-") -> -
I22: =IF((E22+G22)>0,(E22+G22)/'Operational Data'!$G$21, "-") -> -
A23: Total Non-Hazardous Waste | E23: =SUM(E18:F22) -> 80 | G23: =SUM(G18:H22) -> 19410 | I23: =IF((E23+G23)>0,(E23+G23)/'Operational Data'!$G$21, "-") -> 0.1741157973
A24: TOTAL WASTE | E24: =+E23+E15 -> 3241 | G24: =+G23+G15 -> 19410 | I24: =IF((E24+G24)>0,(E24+G24)/'Operational Data'!$G$21, "-") -> 0.2023548961
A26: Operator’s comments :
A31: =+A1 -> 2021 | B31: Annual Reporting of Water and Other Raw Material Usage
A32: Raw Material | E32: Usage | G32: Unit | H32: Specific Useage | J32: Unit
A33: Mains Water | E33: =+'Operational Data'!G42 -> 40140 | G33: m3 | H33: =IF(E33>0,E33/'Operational Data'!$G$21,"-") -> 0.3585945666 | J33: m3/te
A34: Total Water | E34: =+'Operational Data'!G43+'Operational Data'!G42 -> 40140 | G34: m3 | H34: =IF(E34>0,E34/'Operational Data'!$G$21,"-") -> 0.3585945666 | J34: m3/te
A35: Urea / Ammonia | E35: =+'Operational Data'!G45 -> 210000 | G35: kg | H35: =IF(E35>0,E35/'Operational Data'!$G$21,"-") -> 1.876055281 | J35: kg/te
A36: Activated Carbon | E36: =+'Operational Data'!G46 -> 11000 | G36: kg | H36: =IF(E36>0,E36/'Operational Data'!$G$21,"-") -> 0.09826956234 | J36: kg/te
A37: Lime / hydrated lime / Sodium Bicarb. | E37: =+'Operational Data'!G47 -> 833000 | G37: kg | H37: =IF(E37>0,E37/'Operational Data'!$G$21,"-") -> 7.441685948 | J37: kg/te
A39: Operator’s comments :
A43: =+A31 -> 2021 | B43: Annual Reporting of other performance indicators
A44: Parameter | C44: Results by Line
C45: A1 | D45: A2 | E45: A3 | F45: A4 | G45: A5 | I45: Turbine 1 | J45: Turbine 2
A46: Operating hours for the year, hours | C46: ='Operational Data'!G53 -> 7942.25 | D46: ='Operational Data'!G54 -> 8048.5 | I46: ='Operational Data'!G59 -> 7965.85
A47: Number of periods of abnormal operation, qty. | C47: 1 | D47: 0
A48: Cumulative hours of abnormal operation for this year, hours | C48: 0.5 | D48: 0
A50: Operator’s comments :
A54: Signed: | B54: J Purnell | G54: Date: | H54: 2022-01-31

Sheet Energy Form 1
A1: =+'Cover Page'!C39 -> 2021 | B1: Annual Reporting of Energy Usage/Export
A3: =+'Cover Page'!B31 -> Permit EPR/AP3835SM | F3: Operator: | G3: MES Environmental
A5: Facility: | B5: =+'Cover Page'!B33:I33 -> Wolverhampton Energy from Waste Facility | F5: Form: | G5: Energy 1
A7: Reporting Period from: | D7: =+'Perf. Form 1'!D6:E6 -> 2021-01-01 | F7: to: | G7: =+'Perf. Form 1'!G6:H6 -> 2021-12-31
A9: Energy Source | D9: Energy Usage | F9: Unit | G9: Specific Useage (KWh/tonne incinerated
A10: Electricity Produced | D10: =+'Operational Data'!G24 -> 46389 | F10: MWh | G10: =+'Operational Data'!H24 -> 414.4206116
A11: Electricity Imported | D11: =+'Operational Data'!G27 -> 495.3 | F11: MWh | G11: =+'Operational Data'!H27 -> 4.424810384
A12: Electricity Exported | D12: =+'Operational Data'!G25 -> 37759 | F12: MWh | G12: =+'Operational Data'!H25 -> 337.3236731
A13: Gas Oil | D13: ='Operational Data'!G48*0.00089013 -> 112.8168565 | F13: tonnes
A14: Steam/hot water exported | D14: =+'Operational Data'!G30 -> 0 | F14: GWh | G14: =+'Operational Data'!H30 -> -
A18: Operator’s comments :
A29: Signed: | B29: J Purnell | G29: Date: | H29: 2022-01-31

Sheet Permit Compliance
A1: =+'Cover Page'!$B$29 -> Annual Performance Report 2021 | E1: =+'Cover Page'!$B$33 -> Wolverhampton Energy from Waste Facility
A3: Summary of Permit Compliance
A5: Compliance with permit limits for continuously monitored pollutants
A7: The plant met its emission limits as shown in the table below:
A8: Substance | C8: Percentage time compliant during operation | L8: Notes:
C9: Half-hourly limit | F9: Daily limit | L9: Report to 2 decimal places, i.e. xx.xx% Please provide a brief summary of each notification or non-compliance in the table (rather than just referring to notifications that were sent to the Regulator).
A10: Particulates | C10: 1 | F10: 1
A11: Oxides of nitrogen | C11: 1 | F11: 1
A12: Sulphur dioxide | C12: 1 | F12: 1
A13: Carbon monoxide | C13: 1 | F13: 1
A14: Total organic carbon | C14: 1 | F14: 1
A15: Hydrogen chloride | C15: 0.9999 | F15: 0.9973
A16: Hydrogen fluoride | C16: 1 | F16: 1
A17: Average | C17: 1 | F17: 0.9996
A19: Summary of any notifications or non-compliances under the permit
A20: Date | B20: Summary of notification or non-compliance [including Line/Reference] | E20: Reason | H20: Measures taken to prevent reoccurrence
A21: 2021-03-03 | B21: A1, HCl, Half hourly limit | E21: Poor waste composition | H21: Lime flow increased
A22: 2021-03-08 | B22: A1, Hg, Periodic ELV | E22: Rogue waste element | H22: Increased mixing of waste
A23: 2021-08-17 | B23: A1, VOC, Half hourly limit | E23: Volatile waste | H23: Increased mixing of waste
A24: 2021-08-20 | B24: A1, Dioxin, Periodic ELV | E24: Unknown, no cause determined | H24: Investigation performed
A25: 2021-10-24 | B25: A2, HCl, Daily limit | E25: Equipment failure | H25: Equipment repaired
A26: 2021-12-19 | B26: A1, HCl, Half hourly limit | E26: Poor waste composition | H26: Increased lime flow
A34: Summary of any complaints received and actions to taken to resolve them.
A35: Date | B35: Summary of complaint [including Line/Reference] | E35: Reason * | H35: Measures taken to prevent reoccurrence
A36: 2021-08-01 | B36: Noise complaint during start up after outage | E36: Relief valve failure | H36: Increased start up checks
E41: * including whether substantiated by the operator or the EA

Sheet Improvements
A1: =+'Cover Page'!$B$29 -> Annual Performance Report 2021 | E1: =+'Cover Page'!$B$33 -> Wolverhampton Energy from Waste Facility
A3: Summary of Plant Improvements
A5: Summary of any efficiency improvements that have been completed within the year.
A6: • LED lamp replacement is an ongoing project. • The enhanced cleaning regime on the ACC is a consolidated practice (2 times/year). During the outage, the blades of the ACC fans are cleaned and the blade tip angles checked and adjusted. • The installation of 2 upgraded air ejectors, combined with a robust programme of air leak detection and repair has led to good vacuum, which improves output from the turbine. • Implemented a ultrasonic cleaning machine for the lime discs to improve the efficiency of the lime slurry injection. Implemented 18 holes lime discs for a more efficient lime slurry distribution. • Continued the replacement program of damaged lagging. • Continued the installation of frequency converters (FD fan 1). The FD fan 2 will be fitted with frequency converter during the 2022 outage.
A16: Summary of any permit improvement conditions that have been completed within the year and the resulting environmental benefits.
A17: All permit improvement conditions were completed prior to 2021.
A27: Summary of any changes to the plant or operating techniques which required a variation to the permit and a summary of the resulting environmental impact.
A28: No permit variations were required during 2021.
A38: Summary of any other improvements made to the plant or planned to be made and a summary of the resulting environmental benefits.
A39: • The manifold of the lime slurry pumps has been replaced to improve reliability and reduce leakage. • Wells have been installed and underground water investigation carried out. Underground gas and soil samples have also been analysed. • Waste bunker n. 2 has been inspected and the repair of a crack commenced. Works will be completed in 2022. The inspection program and repair of the underground drains continues. • The electrical panel of the effluent plant has been renewed. • Two dust probes have been replaced with new upgraded units. Following the Environment Agency recommendation, CO2 and N2O analysers have been installed. Calibration of gas flow meters will be tentatively performed in 2022 together with QAL2. • Installation of turbine bearings early warning fire detection systems. • The sub-cooler and the MP bundle of the air heater of boiler 1 has been replaced in the 2021 annual shutdown. This improved the under fire air temperatures. • A few areas of boiler 1 have been Hastelloy cladded with HVTS (High velocity Thermal Spray) to improve the reliability of the unit. • Replaced stream 1 anion resins of the demin plant.

Sheet Public Liasion
A1: =+'Cover Page'!$B$29 -> Annual Performance Report 2021 | E1: =+'Cover Page'!$B$33 -> Wolverhampton Energy from Waste Facility
A3: Details of Public & Stakeholder Liasion
A5: Summary of events held during the reporting year.
A6: Date | C6: Description
A7: Across 2021 | C7: MESE conducts monthly meetings with its core stakeholders in order discuss operational, health and safety, and environmental performance.
A16: List of events planned for next year
A17: Date | C17: Description
A18: 2022 | C18: MESE will continue to meet with its core stakeholders on a monthly basis.
A29: If you wish to be involved in the public liasion programme, please contact _________________

Sheet Residue Quality
A1: =+'Cover Page'!$B$29 -> Annual Performance Report 2021 | E1: =+'Cover Page'!$B$33 -> Wolverhampton Energy from Waste Facility
A3: Residue Quality Monitoring Requirements
A5: Summary of monitoring undertaken and compliance
A6: 24 sample IBA monitoring scheme undertaken as per the ESA protocol
A8: 2 IBA samples taken direct from each unit's ash discharger and subjected to full hazard assessment against WM3 - both samples found to be below the hazard thresholds for all applicable hazard categories
A10: Quarterly APCr monitoring performed.
A13: Commentary on any specific events
A14: Date & Event | C14: Description
A27: Residue Quality Monitoring Results
A28: Parameter (unit) | C28: Limit | D28: Normal Operation
D29: Bottom ash | F29: APC Residues
A30: Loss on Ignition (average %) | C30: <5% | D30: 6.63
A31: Total Organic Carbon (average %) | C31: <3% | D31: 0.87
A32: No. of Assessments Undertaken | C32: --- | D32: 24 | F32: 8
A33: No. of Hazardous Results | C33: --- | D33: 0
A35: Comments :
A36: The Loss on Ignition and TOC values above represent the average observed over all samples taken during 2021

Sheet Water
A1: =+'Cover Page'!$B$29 -> Annual Performance Report 2021 | E1: =+'Cover Page'!$B$33 -> Wolverhampton Energy from Waste Facility
A3: Emissions to Water
A5: Summary of monitoring undertaken and compliance
A6: Annual sample taken and analysed. All results below limits given in discharge consent.
A8: Waste water arising from the process is neutralised and recycled as far as is practicible in order to minimise the quantity released to sewer.
A13: Commentary on any specific events
A14: Date & Event | C14: Description
A22: Emissions to Water / Sewer
A23: Parameter | D23: Monitoring Frequency | G23: Limit | H23: Target | I23: Max. | J23: Average
A24: pH | D24: Continuous | G24: 6 - 10 | H24: 6 - 10 | I24: 8 | J24: 8
A25: Total Suspended Solids (TSS) | D25: Annual | G25: 400 mg/L | H25: <400 mg/L | I25: 4 | J25: 4
A26: Chemical Oxygen Demand (COD) | D26: Annual | G26: 800 mg/L | H26: <800 mg/L | I26: 18 | J26: 18
A27: Zinc | D27: Annual | G27: 5 mg/L | H27: <5 mg/L | I27: 0.05 | J27: 0.05
A28: Sulphate | D28: Annual | G28: 1000 mg/L | H28: <1000 mg/L | I28: 67.3 | J28: 67.3
A29: Phosphorus | D29: Annual | G29: 25 mg/L | H29: <25 mg/L | I29: 0.25 | J29: 0.25
A30: Oil | D30: Annual | G30: nil | H30: nil | I30: nil | J30: nil

Sheet Air (periodic)
A1: =+'Cover Page'!$B$29 -> Annual Performance Report 2021 | E1: =+'Cover Page'!$B$33 -> Wolverhampton Energy from Waste Facility
A3: Emissions to Air (periodically monitored)
A5: Summary of monitoring undertaken, standards used and compliance | M5: Notes:
A6: Periodic monitoring of the substances listed below are undertaken as per the conditions listed in the permit. | M6: Template may require adjustment for any bespoke monitoring requirements of permit.
A9: Results of emissions to air that are periodically monitored
A10: Substance | C10: Ref. Period | D10: Emission Limit Value | F10: Average | M10: User to add additional tables as necessary, depending on whether quarterly or bi-annual reporting is required for the compliance year
F11: A1 | G11: A2 | H11: A3 | I11: A4 | J11: A5
A12: Hydrogen fluoride | C12: 1 hr | D12: 2 mg/m3 | F12: 0.1625 | G12: 0.105
A13: Cd and Th and their compounds | C13: 6-8hrs | D13: 0.05 mg/m3 | F13: 0.0018 | G13: 0.00175
A14: Hg and its compounds | C14: 6-8hrs | D14: 0.05 mg/m3 | F14: 0.0189 | G14: 0.00735
A15: Sb, As, Pb, Cr, Co, Cu, Mn, Ni, V and their compounds | C15: 6-8hrs | D15: 0.5 mg/m3 | F15: 0.052275 | G15: 0.074175
A16: Dioxins & Furans (I-TEQ) | C16: 6-8hrs | D16: 0.1 ng/m3 | F16: 0.0879 | G16: 0.07125
A17: PCBs (WHO-TEQ Humans / Mammals) | C17: 6-8hrs | D17: None set ng/m3 | F17: 0.0079 | G17: 0.0043
A18: PCBs (WHO-TEQ Fish) | C18: 6-8hrs | D18: None set ng/m3 | F18: 0.0004 | G18: 0.0002
A19: PCBs (WHO-TEQ Birds) | C19: 6-8hrs | D19: None set ng/m3 | F19: 0.01545 | G19: 0.0085
A20: Dioxins & Furans (WHO-TEQ Humans / Mammals) | C20: 6-8hrs | D20: None set ng/m3 | F20: 0.08146666667 | G20: 0.0689
A21: Dioxins & Furans (WHO-TEQ Fish) | C21: 6-8hrs | D21: None set ng/m3 | F21: 0.09366666667 | G21: 0.07655
A22: Dioxins & Furans (WHO-TEQ Birds) | C22: 6-8hrs | D22: None set ng/m3 | F22: 0.1479333333 | G22: 0.1185
A23: Anthanthrene | C23: 6-8hrs | D23: None set µg/m3 | F23: 0.00805 | G23: 0.0076
A24: Benzo(a)anthracene | C24: 6-8hrs | D24: None set µg/m3 | F24: 0.0133 | G24: 0.0076
A25: Benzo(a)pyrene | C25: 6-8hrs | D25: None set µg/m3 | F25: 0.00805 | G25: 0.0076
A26: Benzo(b)fluoranthene | C26: 6-8hrs | D26: None set µg/m3 | F26: 0.009 | G26: 0.0076
A27: Benzo(b)naptho(2,1-d) thiophene | C27: 6-8hrs | D27: None set µg/m3 | F27: 0.00805 | G27: 0.0076
A28: Benzo(c)phenanthrene | C28: 6-8hrs | D28: None set µg/m3 | F28: 0.00805 | G28: 0.0076
A29: Benzo(ghi)perylene | C29: 6-8hrs | D29: None set µg/m3 | F29: 0.00805 | G29: 0.01145
A30: Benzo(k)fluoranthene | C30: 6-8hrs | D30: None set µg/m3 | F30: 0.00805 | G30: 0.0076
A31: Cholanthrene | C31: 6-8hrs | D31: None set µg/m3 | F31: 0.00805 | G31: 0.0076
A32: Chrysene | C32: 6-8hrs | D32: None set µg/m3 | F32: 0.0161 | G32: 0.0076
A33: Cyclopenta(cd)pyrene | C33: 6-8hrs | D33: None set µg/m3 | F33: 0.07235 | G33: 0.01875
A34: Dibenzo(ai)pyrene | C34: 6-8hrs | D34: None set µg/m3 | F34: 0.00805 | G34: 0.0076
A35: Dibenzo(ah)anthracene | C35: 6-8hrs | D35: None set µg/m3 | F35: 0.00805 | G35: 0.0076
A36: Fluoranthene | C36: 6-8hrs | D36: None set µg/m3 | F36: 0.3655 | G36: 0.1739
A37: Indeno(123-cd) pyrene | C37: 6-8hrs | D37: None set µg/m3 | F37: 0.00805 | G37: 0.0076
A38: Naphthalene | C38: 6-8hrs | D38: None set µg/m3 | F38: 11.26245 | G38: 0.9534
A39: Comments :

Sheet Air (CEMS)
A1: =+'Cover Page'!$B$29 -> Annual Performance Report 2021 | I1: =+'Cover Page'!$B$33 -> Wolverhampton Energy from Waste Facility
A3: Emissions to Air (continously monitored)
P4: Notes:
A5: Summary of monitoring undertaken, standards used and compliance | P5: Template may require adjustment for any bespoke monitoring requirements of permit
A6: The substances below are continuously monitored by the plant. Average and maximum emissions are recorded below. | P6: Report to 2 decimal places, i.e. xx.xx%
A11: Results of emissions to air that are continuously monitored (maximum and average values for each line)
A12: Substance | B12: Reference Period | C12: Emission Limit Value | D12: A1 | F12: A2 | H12: A3 | J12: A4 | L12: A5
D13: Max. | E13: Avg. | F13: Max. | G13: Avg. | H13: Max. | I13: Avg. | J13: Max. | K13: Avg. | L13: Max. | M13: Avg.
A14: Oxides of nitrogen | B14: Daily mean | C14: 200 mg/m3 | D14: =NOx!O19 -> 192 | E14: =NOx!N19 -> 182.75 | F14: =NOx!O34 -> 193 | G14: =NOx!N34 -> 182.6666667
B15: ½ hourly mean | C15: 400 mg/m3 | D15: =NOx!M19 -> 371 | E15: =NOx!L19 -> 182.75 | F15: =NOx!M34 -> 382 | G15: =NOx!L34 -> 182.6666667
A16: Particulates | B16: Daily mean | C16: 10 mg/m3 | D16: =Particulates!O19 -> 2 | E16: =Particulates!N19 -> 0.08333333333 | F16: =Particulates!O34 -> 7 | G16: =Particulates!N34 -> 0
B17: ½ hourly mean | C17: 30 mg/m3 | D17: =Particulates!M19 -> 6 | E17: =Particulates!L19 -> 0.08333333333 | F17: =Particulates!M34 -> 27 | G17: =Particulates!L34 -> 0
A18: Total Organic Carbon | B18: Daily mean | C18: 10 mg/m3 | D18: =TOC!O19 -> 2 | E18: =TOC!N19 -> 0 | F18: =TOC!O34 -> 2 | G18: =TOC!N34 -> 0.1666666667
B19: ½ hourly mean | C19: 20 mg/m3 | D19: =TOC!M19 -> 29 | E19: =TOC!L19 -> 0 | F19: =TOC!M34 -> 18 | G19: =TOC!L34 -> 0.1666666667
A20: Hydrogen chloride | B20: Daily mean | C20: 10 mg/m3 | D20: =HCl!O19 -> 10 | E20: =HCl!N19 -> 6.583333333 | F20: =HCl!O34 -> 13 | G20: =HCl!N34 -> 7
B21: ½ hourly mean | C21: 60 mg/m3 | D21: =HCl!M19 -> 104 | E21: =HCl!L19 -> 6.583333333 | F21: =HCl!M34 -> 90 | G21: =HCl!L34 -> 7
A22: Sulphur dioxide | B22: Daily mean | C22: 50 mg/m3 | D22: ='SO2'!O19 -> 40 | E22: ='SO2'!N19 -> 18.83333333 | F22: ='SO2'!O34 -> 39 | G22: ='SO2'!N34 -> 22.75
B23: ½ hourly mean | C23: 200 mg/m3 | D23: ='SO2'!M19 -> 161 | E23: ='SO2'!L19 -> 18.83333333 | F23: ='SO2'!M34 -> 124 | G23: ='SO2'!L34 -> 22.75
A24: Carbon monoxide | B24: Daily mean | C24: 50 mg/m3 | D24: ='CO 95% 10 min'!Q19 -> 46 | E24: ='CO 95% 10 min'!P19 -> 10 | F24: ='CO 95% 10 min'!Q34 -> 48 | G24: ='CO 95% 10 min'!P34 -> 9.333333333
B25: 95%ile 10-min avg * | C25: 150 mg/m3 * | D25: ='CO 95% 10 min'!O19 -> 266 | E25: ='CO 95% 10 min'!N19 -> 10 | F25: ='CO 95% 10 min'!O34 -> 140 | G25: ='CO 95% 10 min'!N34 -> 9.333333333
A26: Ammonia | B26: Daily mean | C26: No limit set | D26: ='NH3'!O19 -> 17 | E26: ='NH3'!N19 -> 0.6666666667 | F26: ='NH3'!O34 -> 16 | G26: ='NH3'!N34 -> 2
A27: * = delete or amend as appropriate
A28: Comments :

Sheet HCl
A1: =+'Cover Page'!$B$29 -> Annual Performance Report 2021 | E1: =+'Cover Page'!$B$33 -> Wolverhampton Energy from Waste Facility
A3: Monitoring of Hydrogen Chloride emissions | D3: Whole Installation | G3: See Notes in Cell Q3 | J3: =+A3 -> Monitoring of Hydrogen Chloride emissions | N3: Per Combustion Line | Q3: Notes:
Q4: User to add logic to complete Whole installation, Table A5:G18. From the data in Per Combustion Line, Table J6:O79, subject to No. of lines installed
A5: mg/Nm3 | B5: 1/2 Hourly Reference Periods | E5: Daily Reference Periods
A6: =+'Cover Page'!C39 -> 2021 | B6: 1/2 hourly HCl ELV | C6: Monthly 1/2 hourly mean | D6: Highest 1/2 hourly maximum | E6: Daily HCl ELV | F6: Monthly daily mean | G6: Highest daily maximum | J6: =+A6 -> 2021 | K6: mg/Nm3 | L6: Monthly 1/2 hourly mean | M6: Monthly 1/2 hourly maximum | N6: Monthly daily mean | O6: Monthly daily maximum
A7: Jan | B7: 60 | C7: =AVERAGE(L7,L22) -> 5.5 | D7: =MAX(M7,M22) -> 34 | E7: 10 | F7: =AVERAGE(N7,N22) -> 5.5 | G7: =MAX(O7,O22) -> 8 | J7: A1 | K7: Jan | L7: 6 | M7: 34 | N7: 6 | O7: 8
A8: Feb | B8: 60 | C8: =AVERAGE(L8,L23) -> 6.5 | D8: =MAX(M8,M23) -> 20 | E8: 10 | F8: =AVERAGE(N8,N23) -> 6.5 | G8: =MAX(O8,O23) -> 8 | K8: Feb | L8: 6 | M8: 20 | N8: 6 | O8: 8
A9: Mar | B9: 60 | C9: 7 | D9: 104 | E9: 10 | F9: 7 | G9: 8 | K9: Mar | L9: 7 | M9: 104 | N9: 7 | O9: 8 | Q9: Whole Installation table A5:G18:
A10: Apr | B10: 60 | C10: 7 | D10: 39 | E10: 10 | F10: 7 | G10: 9 | K10: Apr | L10: 7 | M10: 39 | N10: 7 | O10: 8 | Q10: Mean: for 1/2 hourly and daily periods calculate mean of values across all operational combustion lines for the month
A11: May | B11: 60 | C11: 6 | D11: 25 | E11: 10 | F11: 6 | G11: 7 | K11: May | L11: 6 | M11: 19 | N11: 6 | O11: 7
A12: Jun | B12: 60 | C12: 7 | D12: 26 | E12: 10 | F12: 7 | G12: 8 | K12: Jun | L12: 7 | M12: 22 | N12: 7 | O12: 8
A13: Jul | B13: 60 | C13: 6 | D13: 20 | E13: 10 | F13: 6 | G13: 8 | K13: Jul | L13: 6 | M13: 20 | N13: 6 | O13: 7 | Q13: Maximum: for 1/2 hourly and daily periods use the highest value across all operational combustion lines for the month
A14: Aug | B14: 60 | C14: 7.5 | D14: 90 | E14: 10 | F14: 7.5 | G14: 10 | K14: Aug | L14: 7 | M14: 27 | N14: 7 | O14: 9
A15: Sep | B15: 60 | C15: 8 | D15: 35 | E15: 10 | F15: 8 | G15: 10 | K15: Sep | L15: 8 | M15: 35 | N15: 8 | O15: 10
A16: Oct | B16: 60 | C16: 7.5 | D16: 59 | E16: 10 | F16: 7.5 | G16: 13 | K16: Oct | L16: 7 | M16: 27 | N16: 7 | O16: 9
A17: Nov | B17: 60 | C17: 7 | D17: 45 | E17: 10 | F17: 7 | G17: 9 | K17: Nov | L17: 6 | M17: 45 | N17: 6 | O17: 8
A18: Dec | B18: 60 | C18: 6.5 | D18: 83 | E18: 10 | F18: 6.5 | G18: 9 | K18: Dec | L18: 6 | M18: 83 | N18: 6 | O18: 8
K19: Annual | L19: =AVERAGE(L7:L18) -> 6.583333333 | M19: =MAX(M7:M18) -> 104 | N19: =AVERAGE(N7:N18) -> 6.583333333 | O19: =MAX(O7:O18) -> 10
J21: =+A6 -> 2021 | K21: mg/Nm3 | L21: Monthly 1/2 hourly mean | M21: Monthly 1/2 hourly maximum | N21: Monthly daily mean | O21: Monthly daily maximum
J22: A2 | K22: Jan | L22: 5 | M22: 23 | N22: 5 | O22: 8
K23: Feb | L23: 7 | M23: 19 | N23: 7 | O23: 8
K24: Mar | L24: 7 | M24: 21 | N24: 7 | O24: 8
K25: Apr | L25: 7 | M25: 37 | N25: 7 | O25: 9
K26: May | L26: 6 | M26: 25 | N26: 6 | O26: 7
K27: Jun | L27: 7 | M27: 26 | N27: 7 | O27: 8
K28: Jul | L28: 6 | M28: 18 | N28: 6 | O28: 8
K29: Aug | L29: 8 | M29: 90 | N29: 8 | O29: 10
K30: Sep | L30: 8 | M30: 27 | N30: 8 | O30: 9
K31: Oct | L31: 8 | M31: 59 | N31: 8 | O31: 13
K32: Nov | L32: 8 | M32: 32 | N32: 8 | O32: 9
K33: Dec | L33: 7 | M33: 33 | N33: 7 | O33: 9
K34: Annual | L34: =AVERAGE(L22:L33) -> 7 | M34: =MAX(M22:M33) -> 90 | N34: =AVERAGE(N22:N33) -> 7 | O34: =MAX(O22:O33) -> 13
J36: =+A6 -> 2021 | K36: mg/Nm3 | L36: Monthly 1/2 hourly mean | M36: Monthly 1/2 hourly maximum | N36: Monthly daily mean | O36: Monthly daily maximum
J37: A3 | K37: Jan
K38: Feb
K39: Mar
K40: Apr
K41: May
K42: Jun
K43: Jul
K44: Aug
K45: Sep
K46: Oct
K47: Nov
A48: Comments : | K48: Dec
K49: Annual | L49: =AVERAGE(L37:L48) ->  | M49: =MAX(M37:M48) -> 0 | N49: =AVERAGE(N37:N48) ->  | O49: =MAX(O37:O48) -> 0
J51: =+A6 -> 2021 | K51: mg/Nm3 | L51: Monthly 1/2 hourly mean | M51: Monthly 1/2 hourly maximum | N51: Monthly daily mean | O51: Monthly daily maximum
J52: A4 | K52: Jan
K53: Feb
K54: Mar
K55: Apr
K56: May
K57: Jun
K58: Jul
K59: Aug
K60: Sep
K61: Oct
K62: Nov
K63: Dec
K64: Annual | L64: =AVERAGE(L52:L63) ->  | M64: =MAX(M52:M63) -> 0 | N64: =AVERAGE(N52:N63) ->  | O64: =MAX(O52:O63) -> 0
J66: =+A6 -> 2021 | K66: mg/Nm3 | L66: Monthly 1/2 hourly mean | M66: Monthly 1/2 hourly maximum | N66: Monthly daily mean | O66: Monthly daily maximum
J67: A5 | K67: Jan
K68: Feb
K69: Mar
K70: Apr
K71: May
K72: Jun
K73: Jul
K74: Aug
K75: Sep
K76: Oct
K77: Nov
K78: Dec
K79: Annual | L79: =AVERAGE(L67:L78) ->  | M79: =MAX(M67:M78) -> 0 | N79: =AVERAGE(N67:N78) ->  | O79: =MAX(O67:O78) -> 0

Sheet SO2
A1: =+'Cover Page'!$B$29 -> Annual Performance Report 2021 | E1: =+'Cover Page'!$B$33 -> Wolverhampton Energy from Waste Facility
A3: Monitoring of Sulphur dioxide emissions | D3: Whole Installation | G3: See Notes in Cell Q3 | J3: =+A3 -> Monitoring of Sulphur dioxide emissions | N3: Per Combustion Line | Q3: Notes:
Q4: User to add logic to complete Whole installation, Table A5:G18. From the data in Per Combustion Line, Table J6:O79, subject to No. of lines installed
A5: mg/Nm3 | B5: 1/2 Hourly Reference Periods | E5: Daily Reference Periods
A6: =+'Cover Page'!C39 -> 2021 | B6: 1/2 hourly SO2 ELV | C6: Monthly 1/2 hourly mean | D6: Highest 1/2 hourly maximum | E6: Daily SO2 ELV | F6: Monthly daily mean | G6: Highest daily maximum | J6: =+A6 -> 2021 | K6: mg/Nm3 | L6: Monthly 1/2 hourly mean | M6: Monthly 1/2 hourly maximum | N6: Monthly daily mean | O6: Monthly daily maximum
A7: Jan | B7: 200 | C7: =AVERAGE(L7,L22) -> 20 | D7: =MAX(M7,M22) -> 98 | E7: 50 | F7: =AVERAGE(N7,N22) -> 20 | G7: =MAX(O7,O22) -> 29 | J7: A1 | K7: Jan | L7: 21 | M7: 89 | N7: 21 | O7: 29
A8: Feb | B8: 200 | C8: =AVERAGE(L8,L23) -> 20 | D8: =MAX(M8,M23) -> 76 | E8: 50 | F8: =AVERAGE(N8,N23) -> 20 | G8: =MAX(O8,O23) -> 32 | K8: Feb | L8: 18 | M8: 71 | N8: 18 | O8: 24
A9: Mar | B9: 200 | C9: 21 | D9: 70 | E9: 50 | F9: 21 | G9: 27 | K9: Mar | L9: 20 | M9: 70 | N9: 20 | O9: 27 | Q9: Whole Installation table A5:G18:
A10: Apr | B10: 200 | C10: 21 | D10: 112 | E10: 50 | F10: 21 | G10: 32 | K10: Apr | L10: 18 | M10: 101 | N10: 18 | O10: 28 | Q10: Mean: for 1/2 hourly and daily periods calculate mean of values across all operational combustion lines for the month
A11: May | B11: 200 | C11: 21.5 | D11: 87 | E11: 50 | F11: 21.5 | G11: 32 | K11: May | L11: 18 | M11: 87 | N11: 18 | O11: 29
A12: Jun | B12: 200 | C12: 22 | D12: 123 | E12: 50 | F12: 22 | G12: 33 | K12: Jun | L12: 18 | M12: 88 | N12: 18 | O12: 24
A13: Jul | B13: 200 | C13: 19.5 | D13: 76 | E13: 50 | F13: 19.5 | G13: 29 | K13: Jul | L13: 16 | M13: 57 | N13: 16 | O13: 26 | Q13: Maximum: for 1/2 hourly and daily periods use the highest value across all operational combustion lines for the month
A14: Aug | B14: 200 | C14: 29 | D14: 161 | E14: 50 | F14: 29 | G14: 40 | K14: Aug | L14: 28 | M14: 161 | N14: 28 | O14: 40
A15: Sep | B15: 200 | C15: 21 | D15: 127 | E15: 50 | F15: 21 | G15: 28 | K15: Sep | L15: 19 | M15: 127 | N15: 19 | O15: 24
A16: Oct | B16: 200 | C16: 20 | D16: 124 | E16: 50 | F16: 20 | G16: 36 | K16: Oct | L16: 18 | M16: 59 | N16: 18 | O16: 26
A17: Nov | B17: 200 | C17: 18 | D17: 58 | E17: 50 | F17: 18 | G17: 24 | K17: Nov | L17: 17 | M17: 58 | N17: 17 | O17: 24
A18: Dec | B18: 200 | C18: 16.5 | D18: 95 | E18: 50 | F18: 16.5 | G18: 29 | K18: Dec | L18: 15 | M18: 65 | N18: 15 | O18: 25
K19: Annual | L19: =AVERAGE(L7:L18) -> 18.83333333 | M19: =MAX(M7:M18) -> 161 | N19: =AVERAGE(N7:N18) -> 18.83333333 | O19: =MAX(O7:O18) -> 40
J21: =+A6 -> 2021 | K21: mg/Nm3 | L21: Monthly 1/2 hourly mean | M21: Monthly 1/2 hourly maximum | N21: Monthly daily mean | O21: Monthly daily maximum
J22: A2 | K22: Jan | L22: 19 | M22: 98 | N22: 19 | O22: 29
K23: Feb | L23: 22 | M23: 76 | N23: 22 | O23: 32
K24: Mar | L24: 22 | M24: 65 | N24: 22 | O24: 27
K25: Apr | L25: 24 | M25: 112 | N25: 24 | O25: 32
K26: May | L26: 25 | M26: 77 | N26: 25 | O26: 32
K27: Jun | L27: 26 | M27: 123 | N27: 26 | O27: 33
K28: Jul | L28: 23 | M28: 76 | N28: 23 | O28: 29
K29: Aug | L29: 30 | M29: 87 | N29: 30 | O29: 39
K30: Sep | L30: 23 | M30: 90 | N30: 23 | O30: 28
K31: Oct | L31: 22 | M31: 124 | N31: 22 | O31: 36
K32: Nov | L32: 19 | M32: 48 | N32: 19 | O32: 24
K33: Dec | L33: 18 | M33: 95 | N33: 18 | O33: 29
K34: Annual | L34: =AVERAGE(L22:L33) -> 22.75 | M34: =MAX(M22:M33) -> 124 | N34: =AVERAGE(N22:N33) -> 22.75 | O34: =MAX(O22:O33) -> 39
J36: =+A6 -> 2021 | K36: mg/Nm3 | L36: Monthly 1/2 hourly mean | M36: Monthly 1/2 hourly maximum | N36: Monthly daily mean | O36: Monthly daily maximum
J37: A3 | K37: Jan
K38: Feb
K39: Mar
K40: Apr
K41: May
K42: Jun
K43: Jul
K44: Aug
K45: Sep
K46: Oct
K47: Nov
A48: Comments : | K48: Dec
K49: Annual | L49: =AVERAGE(L37:L48) ->  | M49: =MAX(M37:M48) -> 0 | N49: =AVERAGE(N37:N48) ->  | O49: =MAX(O37:O48) -> 0
J51: =+A6 -> 2021 | K51: mg/Nm3 | L51: Monthly 1/2 hourly mean | M51: Monthly 1/2 hourly maximum | N51: Monthly daily mean | O51: Monthly daily maximum
J52: A4 | K52: Jan
K53: Feb
K54: Mar
K55: Apr
K56: May
K57: Jun
K58: Jul
K59: Aug
K60: Sep
K61: Oct
K62: Nov
K63: Dec
K64: Annual | L64: =AVERAGE(L52:L63) ->  | M64: =MAX(M52:M63) -> 0 | N64: =AVERAGE(N52:N63) ->  | O64: =MAX(O52:O63) -> 0
J66: =+A6 -> 2021 | K66: mg/Nm3 | L66: Monthly 1/2 hourly mean | M66: Monthly 1/2 hourly maximum | N66: Monthly daily mean | O66: Monthly daily maximum
J67: A5 | K67: Jan
K68: Feb
K69: Mar
K70: Apr
K71: May
K72: Jun
K73: Jul
K74: Aug
K75: Sep
K76: Oct
K77: Nov
K78: Dec
K79: Annual | L79: =AVERAGE(L67:L78) ->  | M79: =MAX(M67:M78) -> 0 | N79: =AVERAGE(N67:N78) ->  | O79: =MAX(O67:O78) -> 0

Sheet NOx
A1: =+'Cover Page'!$B$29 -> Annual Performance Report 2021 | E1: =+'Cover Page'!$B$33 -> Wolverhampton Energy from Waste Facility
A3: Monitoring of Oxides of Nitrogen emissions | D3: Whole Installation | G3: See Notes in Cell Q3 | J3: =+A3 -> Monitoring of Oxides of Nitrogen emissions | N3: Per Combustion Line | Q3: Notes:
Q4: User to add logic to complete Whole installation, Table A5:G18. From the data in Per Combustion Line, Table J6:O79, subject to No. of lines installed
A5: mg/Nm3 | B5: 1/2 Hourly Reference Periods | E5: Daily Reference Periods
A6: =+'Cover Page'!C39 -> 2021 | B6: 1/2 hourly NOx ELV | C6: Monthly 1/2 hourly mean | D6: Highest 1/2 hourly maximum | E6: Daily NOx ELV | F6: Monthly daily mean | G6: Highest daily maximum | J6: =+A6 -> 2021 | K6: mg/Nm3 | L6: Monthly 1/2 hourly mean | M6: Monthly 1/2 hourly maximum | N6: Monthly daily mean | O6: Monthly daily maximum
A7: Jan | B7: 400 | C7: =AVERAGE(L7,L22) -> 183.5 | D7: =MAX(M7,M22) -> 382 | E7: 200 | F7: =AVERAGE(N7,N22) -> 183.5 | G7: =MAX(O7,O22) -> 191 | J7: A1 | K7: Jan | L7: 183 | M7: 371 | N7: 183 | O7: 188
A8: Feb | B8: 400 | C8: =AVERAGE(L8,L23) -> 186 | D8: =MAX(M8,M23) -> 344 | E8: 200 | F8: =AVERAGE(N8,N23) -> 186 | G8: =MAX(O8,O23) -> 192 | K8: Feb | L8: 186 | M8: 334 | N8: 186 | O8: 192
A9: Mar | B9: 400 | C9: 185.5 | D9: 350 | E9: 200 | F9: 185.5 | G9: 188 | K9: Mar | L9: 185 | M9: 284 | N9: 185 | O9: 187 | Q9: Whole Installation table A5:G18:
A10: Apr | B10: 400 | C10: 185.5 | D10: 322 | E10: 200 | F10: 185.5 | G10: 193 | K10: Apr | L10: 185 | M10: 258 | N10: 185 | O10: 187 | Q10: Mean: for 1/2 hourly and daily periods calculate mean of values across all operational combustion lines for the month
A11: May | B11: 400 | C11: 185.5 | D11: 276 | E11: 200 | F11: 185.5 | G11: 190 | K11: May | L11: 185 | M11: 272 | N11: 185 | O11: 186
A12: Jun | B12: 400 | C12: 185.5 | D12: 327 | E12: 200 | F12: 185.5 | G12: 192 | K12: Jun | L12: 185 | M12: 327 | N12: 185 | O12: 187
A13: Jul | B13: 400 | C13: 177 | D13: 260 | E13: 200 | F13: 177 | G13: 190 | K13: Jul | L13: 169 | M13: 246 | N13: 169 | O13: 186 | Q13: Maximum: for 1/2 hourly and daily periods use the highest value across all operational combustion lines for the month
A14: Aug | B14: 400 | C14: 183 | D14: 348 | E14: 200 | F14: 183 | G14: 188 | K14: Aug | L14: 185 | M14: 307 | N14: 185 | O14: 188
A15: Sep | B15: 400 | C15: 179.5 | D15: 245 | E15: 200 | F15: 179.5 | G15: 187 | K15: Sep | L15: 185 | M15: 233 | N15: 185 | O15: 187
A16: Oct | B16: 400 | C16: 174.5 | D16: 267 | E16: 200 | F16: 174.5 | G16: 189 | K16: Oct | L16: 178 | M16: 245 | N16: 178 | O16: 187
A17: Nov | B17: 400 | C17: 181.5 | D17: 263 | E17: 200 | F17: 181.5 | G17: 188 | K17: Nov | L17: 182 | M17: 263 | N17: 182 | O17: 188
A18: Dec | B18: 400 | C18: 185.5 | D18: 373 | E18: 200 | F18: 185.5 | G18: 189 | K18: Dec | L18: 185 | M18: 288 | N18: 185 | O18: 189
K19: Annual | L19: =AVERAGE(L7:L18) -> 182.75 | M19: =MAX(M7:M18) -> 371 | N19: =AVERAGE(N7:N18) -> 182.75 | O19: =MAX(O7:O18) -> 192
J21: =+A6 -> 2021 | K21: mg/Nm3 | L21: Monthly 1/2 hourly mean | M21: Monthly 1/2 hourly maximum | N21: Monthly daily mean | O21: Monthly daily maximum
J22: A2 | K22: Jan | L22: 184 | M22: 382 | N22: 184 | O22: 191
K23: Feb | L23: 186 | M23: 344 | N23: 186 | O23: 191
K24: Mar | L24: 186 | M24: 350 | N24: 186 | O24: 188
K25: Apr | L25: 186 | M25: 322 | N25: 186 | O25: 193
K26: May | L26: 186 | M26: 276 | N26: 186 | O26: 190
K27: Jun | L27: 186 | M27: 271 | N27: 186 | O27: 192
K28: Jul | L28: 185 | M28: 260 | N28: 185 | O28: 190
K29: Aug | L29: 181 | M29: 348 | N29: 181 | O29: 188
K30: Sep | L30: 174 | M30: 245 | N30: 174 | O30: 187
K31: Oct | L31: 171 | M31: 267 | N31: 171 | O31: 189
K32: Nov | L32: 181 | M32: 263 | N32: 181 | O32: 187
K33: Dec | L33: 186 | M33: 373 | N33: 186 | O33: 189
K34: Annual | L34: =AVERAGE(L22:L33) -> 182.6666667 | M34: =MAX(M22:M33) -> 382 | N34: =AVERAGE(N22:N33) -> 182.6666667 | O34: =MAX(O22:O33) -> 193
J36: =+A6 -> 2021 | K36: mg/Nm3 | L36: Monthly 1/2 hourly mean | M36: Monthly 1/2 hourly maximum | N36: Monthly daily mean | O36: Monthly daily maximum
J37: A3 | K37: Jan
K38: Feb
K39: Mar
K40: Apr
K41: May
K42: Jun
K43: Jul
K44: Aug
K45: Sep
K46: Oct
K47: Nov
A48: Comments : | K48: Dec
K49: Annual | L49: =AVERAGE(L37:L48) ->  | M49: =MAX(M37:M48) -> 0 | N49: =AVERAGE(N37:N48) ->  | O49: =MAX(O37:O48) -> 0
J51: =+A6 -> 2021 | K51: mg/Nm3 | L51: Monthly 1/2 hourly mean | M51: Monthly 1/2 hourly maximum | N51: Monthly daily mean | O51: Monthly daily maximum
J52: A4 | K52: Jan
K53: Feb
K54: Mar
K55: Apr
K56: May
K57: Jun
K58: Jul
K59: Aug
K60: Sep
K61: Oct
K62: Nov
K63: Dec
K64: Annual | L64: =AVERAGE(L52:L63) ->  | M64: =MAX(M52:M63) -> 0 | N64: =AVERAGE(N52:N63) ->  | O64: =MAX(O52:O63) -> 0
J66: =+A6 -> 2021 | K66: mg/Nm3 | L66: Monthly 1/2 hourly mean | M66: Monthly 1/2 hourly maximum | N66: Monthly daily mean | O66: Monthly daily maximum
J67: A5 | K67: Jan
K68: Feb
K69: Mar
K70: Apr
K71: May
K72: Jun
K73: Jul
K74: Aug
K75: Sep
K76: Oct
K77: Nov
K78: Dec
K79: Annual | L79: =AVERAGE(L67:L78) ->  | M79: =MAX(M67:M78) -> 0 | N79: =AVERAGE(N67:N78) ->  | O79: =MAX(O67:O78) -> 0

Sheet TOC
A1: =+'Cover Page'!$B$29 -> Annual Performance Report 2021 | E1: =+'Cover Page'!$B$33 -> Wolverhampton Energy from Waste Facility
A3: Monitoring of Total organic carbon emissions | D3: Whole Installation | G3: See Notes in Cell Q3 | J3: =+A3 -> Monitoring of Total organic carbon emissions | N3: Per Combustion Line | Q3: Notes:
Q4: User to add logic to complete Whole installation, Table A5:G18. From the data in Per Combustion Line, Table J6:O79, subject to No. of lines installed
A5: mg/Nm3 | B5: 1/2 Hourly Reference Periods | E5: Daily Reference Periods
A6: =+'Cover Page'!C39 -> 2021 | B6: 1/2 hourly TOC ELV | C6: Monthly 1/2 hourly mean | D6: Highest 1/2 hourly maximum | E6: Daily TOC ELV | F6: Monthly daily mean | G6: Highest daily maximum | J6: =+A6 -> 2021 | K6: mg/Nm3 | L6: Monthly 1/2 hourly mean | M6: Monthly 1/2 hourly maximum | N6: Monthly daily mean | O6: Monthly daily maximum
A7: Jan | B7: 20 | C7: =AVERAGE(L7,L22) -> 0 | D7: =MAX(M7,M22) -> 8 | E7: 10 | F7: =AVERAGE(N7,N22) -> 0 | G7: =MAX(O7,O22) -> 0 | J7: A1 | K7: Jan | L7: 0 | M7: 2 | N7: 0 | O7: 0
A8: Feb | B8: 20 | C8: =AVERAGE(L8,L23) -> 0 | D8: =MAX(M8,M23) -> 27 | E8: 10 | F8: =AVERAGE(N8,N23) -> 0 | G8: =MAX(O8,O23) -> 2 | K8: Feb | L8: 0 | M8: 27 | N8: 0 | O8: 2
A9: Mar | B9: 20 | C9: 0 | D9: 4 | E9: 10 | F9: 0 | G9: 1 | K9: Mar | L9: 0 | M9: 4 | N9: 0 | O9: 1 | Q9: Whole Installation table A5:G18:
A10: Apr | B10: 20 | C10: 0 | D10: 8 | E10: 10 | F10: 0 | G10: 2 | K10: Apr | L10: 0 | M10: 3 | N10: 0 | O10: 1 | Q10: Mean: for 1/2 hourly and daily periods calculate mean of values across all operational combustion lines for the month
A11: May | B11: 20 | C11: 0 | D11: 8 | E11: 10 | F11: 0 | G11: 1 | K11: May | L11: 0 | M11: 1 | N11: 0 | O11: 1
A12: Jun | B12: 20 | C12: 0 | D12: 9 | E12: 10 | F12: 0 | G12: 2 | K12: Jun | L12: 0 | M12: 9 | N12: 0 | O12: 1
A13: Jul | B13: 20 | C13: 0.5 | D13: 18 | E13: 10 | F13: 0.5 | G13: 2 | K13: Jul | L13: 0 | M13: 2 | N13: 0 | O13: 0 | Q13: Maximum: for 1/2 hourly and daily periods use the highest value across all operational combustion lines for the month
A14: Aug | B14: 20 | C14: 0 | D14: 29 | E14: 10 | F14: 0 | G14: 1 | K14: Aug | L14: 0 | M14: 29 | N14: 0 | O14: 0
A15: Sep | B15: 20 | C15: 0 | D15: 17 | E15: 10 | F15: 0 | G15: 1 | K15: Sep | L15: 0 | M15: 2 | N15: 0 | O15: 1
A16: Oct | B16: 20 | C16: 0 | D16: 7 | E16: 10 | F16: 0 | G16: 1 | K16: Oct | L16: 0 | M16: 7 | N16: 0 | O16: 1
A17: Nov | B17: 20 | C17: 0 | D17: 11 | E17: 10 | F17: 0 | G17: 1 | K17: Nov | L17: 0 | M17: 1 | N17: 0 | O17: 1
A18: Dec | B18: 20 | C18: 0.5 | D18: 7 | E18: 10 | F18: 0.5 | G18: 1 | K18: Dec | L18: 0 | M18: 1 | N18: 0 | O18: 1
K19: Annual | L19: =AVERAGE(L7:L18) -> 0 | M19: =MAX(M7:M18) -> 29 | N19: =AVERAGE(N7:N18) -> 0 | O19: =MAX(O7:O18) -> 2
J21: =+A6 -> 2021 | K21: mg/Nm3 | L21: Monthly 1/2 hourly mean | M21: Monthly 1/2 hourly maximum | N21: Monthly daily mean | O21: Monthly daily maximum
J22: A2 | K22: Jan | L22: 0 | M22: 8 | N22: 0 | O22: 0
K23: Feb | L23: 0 | M23: 7 | N23: 0 | O23: 2
K24: Mar | L24: 0 | M24: 4 | N24: 0 | O24: 1
K25: Apr | L25: 0 | M25: 8 | N25: 0 | O25: 2
K26: May | L26: 0 | M26: 8 | N26: 0 | O26: 1
K27: Jun | L27: 0 | M27: 6 | N27: 0 | O27: 2
K28: Jul | L28: 1 | M28: 18 | N28: 1 | O28: 2
K29: Aug | L29: 0 | M29: 2 | N29: 0 | O29: 1
K30: Sep | L30: 0 | M30: 17 | N30: 0 | O30: 0
K31: Oct | L31: 0 | M31: 6 | N31: 0 | O31: 1
K32: Nov | L32: 0 | M32: 11 | N32: 0 | O32: 1
K33: Dec | L33: 1 | M33: 7 | N33: 1 | O33: 1
K34: Annual | L34: =AVERAGE(L22:L33) -> 0.1666666667 | M34: =MAX(M22:M33) -> 18 | N34: =AVERAGE(N22:N33) -> 0.1666666667 | O34: =MAX(O22:O33) -> 2
J36: =+A6 -> 2021 | K36: mg/Nm3 | L36: Monthly 1/2 hourly mean | M36: Monthly 1/2 hourly maximum | N36: Monthly daily mean | O36: Monthly daily maximum
J37: A3 | K37: Jan
K38: Feb
K39: Mar
K40: Apr
K41: May
K42: Jun
K43: Jul
K44: Aug
K45: Sep
K46: Oct
K47: Nov
A48: Comments : | K48: Dec
K49: Annual | L49: =AVERAGE(L37:L48) ->  | M49: =MAX(M37:M48) -> 0 | N49: =AVERAGE(N37:N48) ->  | O49: =MAX(O37:O48) -> 0
J51: =+A6 -> 2021 | K51: mg/Nm3 | L51: Monthly 1/2 hourly mean | M51: Monthly 1/2 hourly maximum | N51: Monthly daily mean | O51: Monthly daily maximum
J52: A4 | K52: Jan
K53: Feb
K54: Mar
K55: Apr
K56: May
K57: Jun
K58: Jul
K59: Aug
K60: Sep
K61: Oct
K62: Nov
K63: Dec
K64: Annual | L64: =AVERAGE(L52:L63) ->  | M64: =MAX(M52:M63) -> 0 | N64: =AVERAGE(N52:N63) ->  | O64: =MAX(O52:O63) -> 0
J66: =+A6 -> 2021 | K66: mg/Nm3 | L66: Monthly 1/2 hourly mean | M66: Monthly 1/2 hourly maximum | N66: Monthly daily mean | O66: Monthly daily maximum
J67: A5 | K67: Jan
K68: Feb
K69: Mar
K70: Apr
K71: May
K72: Jun
K73: Jul
K74: Aug
K75: Sep
K76: Oct
K77: Nov
K78: Dec
K79: Annual | L79: =AVERAGE(L67:L78) ->  | M79: =MAX(M67:M78) -> 0 | N79: =AVERAGE(N67:N78) ->  | O79: =MAX(O67:O78) -> 0

Sheet Particulates
A1: =+'Cover Page'!$B$29 -> Annual Performance Report 2021 | E1: =+'Cover Page'!$B$33 -> Wolverhampton Energy from Waste Facility
A3: Monitoring of Particulate matter emissions | D3: Whole Installation | G3: See Notes in Cell Q3 | J3: =+A3 -> Monitoring of Particulate matter emissions | N3: Per Combustion Line | Q3: Notes:
Q4: User to add logic to complete Whole installation, Table A5:G18. From the data in Per Combustion Line, Table J6:O79, subject to No. of lines installed
A5: mg/Nm3 | B5: 1/2 Hourly Reference Periods | E5: Daily Reference Periods
A6: =+'Cover Page'!C39 -> 2021 | B6: 1/2 hourly PM ELV | C6: Monthly 1/2 hourly mean | D6: Highest 1/2 hourly maximum | E6: Daily PM ELV | F6: Monthly daily mean | G6: Highest daily maximum | J6: =+A6 -> 2021 | K6: mg/Nm3 | L6: Monthly 1/2 hourly mean | M6: Monthly 1/2 hourly maximum | N6: Monthly daily mean | O6: Monthly daily maximum
A7: Jan | B7: 30 | C7: =AVERAGE(L7,L22) -> 0 | D7: =MAX(M7,M22) -> 1 | E7: 10 | F7: =AVERAGE(N7,N22) -> 0 | G7: =MAX(O7,O22) -> 0 | J7: A1 | K7: Jan | L7: 0 | M7: 1 | N7: 0 | O7: 0
A8: Feb | B8: 30 | C8: =AVERAGE(L8,L23) -> 0 | D8: =MAX(M8,M23) -> 0 | E8: 10 | F8: =AVERAGE(N8,N23) -> 0 | G8: =MAX(O8,O23) -> 0 | K8: Feb | L8: 0 | M8: 0 | N8: 0 | O8: 0
A9: Mar | B9: 30 | C9: 0 | D9: 1 | E9: 10 | F9: 0 | G9: 0 | K9: Mar | L9: 0 | M9: 0 | N9: 0 | O9: 0 | Q9: Whole Installation table A5:G18:
A10: Apr | B10: 30 | C10: 0 | D10: 0 | E10: 10 | F10: 0 | G10: 0 | K10: Apr | L10: 0 | M10: 0 | N10: 0 | O10: 0 | Q10: Mean: for 1/2 hourly and daily periods calculate mean of values across all operational combustion lines for the month
A11: May | B11: 30 | C11: 0 | D11: 0 | E11: 10 | F11: 0 | G11: 0 | K11: May | L11: 0 | M11: 0 | N11: 0 | O11: 0
A12: Jun | B12: 30 | C12: 0 | D12: 0 | E12: 10 | F12: 0 | G12: 0 | K12: Jun | L12: 0 | M12: 0 | N12: 0 | O12: 0
A13: Jul | B13: 30 | C13: 0 | D13: 9 | E13: 10 | F13: 0 | G13: 0 | K13: Jul | L13: 0 | M13: 1 | N13: 0 | O13: 0 | Q13: Maximum: for 1/2 hourly and daily periods use the highest value across all operational combustion lines for the month
A14: Aug | B14: 30 | C14: 0 | D14: 27 | E14: 10 | F14: 0 | G14: 7 | K14: Aug | L14: 0 | M14: 6 | N14: 0 | O14: 0
A15: Sep | B15: 30 | C15: 0 | D15: 2 | E15: 10 | F15: 0 | G15: 0 | K15: Sep | L15: 0 | M15: 0 | N15: 0 | O15: 0
A16: Oct | B16: 30 | C16: 0 | D16: 2 | E16: 10 | F16: 0 | G16: 1 | K16: Oct | L16: 0 | M16: 0 | N16: 0 | O16: 0
A17: Nov | B17: 30 | C17: 0 | D17: 1 | E17: 10 | F17: 0 | G17: 1 | K17: Nov | L17: 0 | M17: 0 | N17: 0 | O17: 0
A18: Dec | B18: 30 | C18: 0.5 | D18: 3 | E18: 10 | F18: 0.5 | G18: 2 | K18: Dec | L18: 1 | M18: 3 | N18: 1 | O18: 2
K19: Annual | L19: =AVERAGE(L7:L18) -> 0.08333333333 | M19: =MAX(M7:M18) -> 6 | N19: =AVERAGE(N7:N18) -> 0.08333333333 | O19: =MAX(O7:O18) -> 2
J21: =+A6 -> 2021 | K21: mg/Nm3 | L21: Monthly 1/2 hourly mean | M21: Monthly 1/2 hourly maximum | N21: Monthly daily mean | O21: Monthly daily maximum
J22: A2 | K22: Jan | L22: 0 | M22: 0 | N22: 0 | O22: 0
K23: Feb | L23: 0 | M23: 0 | N23: 0 | O23: 0
K24: Mar | L24: 0 | M24: 1 | N24: 0 | O24: 0
K25: Apr | L25: 0 | M25: 0 | N25: 0 | O25: 0
K26: May | L26: 0 | M26: 0 | N26: 0 | O26: 0
K27: Jun | L27: 0 | M27: 0 | N27: 0 | O27: 0
K28: Jul | L28: 0 | M28: 9 | N28: 0 | O28: 0
K29: Aug | L29: 0 | M29: 27 | N29: 0 | O29: 7
K30: Sep | L30: 0 | M30: 2 | N30: 0 | O30: 0
K31: Oct | L31: 0 | M31: 2 | N31: 0 | O31: 1
K32: Nov | L32: 0 | M32: 1 | N32: 0 | O32: 1
K33: Dec | L33: 0 | M33: 2 | N33: 0 | O33: 1
K34: Annual | L34: =AVERAGE(L22:L33) -> 0 | M34: =MAX(M22:M33) -> 27 | N34: =AVERAGE(N22:N33) -> 0 | O34: =MAX(O22:O33) -> 7
J36: =+A6 -> 2021 | K36: mg/Nm3 | L36: Monthly 1/2 hourly mean | M36: Monthly 1/2 hourly maximum | N36: Monthly daily mean | O36: Monthly daily maximum
J37: A3 | K37: Jan
K38: Feb
K39: Mar
K40: Apr
K41: May
K42: Jun
K43: Jul
K44: Aug
K45: Sep
K46: Oct
K47: Nov
A48: Comments : | K48: Dec
K49: Annual | L49: =AVERAGE(L37:L48) ->  | M49: =MAX(M37:M48) -> 0 | N49: =AVERAGE(N37:N48) ->  | O49: =MAX(O37:O48) -> 0
J51: =+A6 -> 2021 | K51: mg/Nm3 | L51: Monthly 1/2 hourly mean | M51: Monthly 1/2 hourly maximum | N51: Monthly daily mean | O51: Monthly daily maximum
J52: A4 | K52: Jan
K53: Feb
K54: Mar
K55: Apr
K56: May
K57: Jun
K58: Jul
K59: Aug
K60: Sep
K61: Oct
K62: Nov
K63: Dec
K64: Annual | L64: =AVERAGE(L52:L63) ->  | M64: =MAX(M52:M63) -> 0 | N64: =AVERAGE(N52:N63) ->  | O64: =MAX(O52:O63) -> 0
J66: =+A6 -> 2021 | K66: mg/Nm3 | L66: Monthly 1/2 hourly mean | M66: Monthly 1/2 hourly maximum | N66: Monthly daily mean | O66: Monthly daily maximum
J67: A5 | K67: Jan
K68: Feb
K69: Mar
K70: Apr
K71: May
K72: Jun
K73: Jul
K74: Aug
K75: Sep
K76: Oct
K77: Nov
K78: Dec
K79: Annual | L79: =AVERAGE(L67:L78) ->  | M79: =MAX(M67:M78) -> 0 | N79: =AVERAGE(N67:N78) ->  | O79: =MAX(O67:O78) -> 0

Sheet CO 95% 10 min
A1: =+'Cover Page'!$B$29 -> Annual Performance Report 2021 | E1: =+'Cover Page'!$B$33 -> Wolverhampton Energy from Waste Facility
A3: Monitoring of Carbon Monoxide (10-minute avg) | E3: Whole Installation | H3: See Notes in Cell S3 | J3: =+A3 -> Monitoring of Carbon Monoxide (10-minute avg) | O3: Per Combustion Line | Q3: Notes: | S3: Notes:
S4: User to add logic to complete Whole installation, Table A5:H18. From the data in Per Combustion Line, Table K6:Q79, subject to No. of lines installed
A5: mg/Nm3 | B5: 10-minute Reference Periods | F5: Daily Reference Periods
A6: =+'Cover Page'!C39 -> 2021 | B6: 95%ile 10-min avg CO ELV | C6: 95%ile 10-min avg maximum | D6: Monthly CO 10-min avg mean | E6: 10-min avg maximum | F6: Daily CO ELV | G6: Monthly daily mean | H6: Highest daily maximum | K6: =+A6 -> 2021 | L6: mg/Nm3 | M6: 95%ile 10-min avg maximum | N6: Monthly CO 10-min avg mean | O6: 10-min avg maximum | P6: Monthly daily mean | Q6: Monthly daily maximum
A7: Jan | B7: 150 | C7: =MAX(M7,M22) -> 19.02 | D7: =AVERAGE(N7,N22) -> 9.5 | E7: =MAX(O7,O22) -> 98 | F7: 50 | G7: =AVERAGE(P7,P22) -> 9.5 | H7: =MAX(Q7,Q22) -> 16 | K7: A1 | L7: Jan | M7: 14.45 | N7: 9 | O7: 42 | P7: 9 | Q7: 15
A8: Feb | B8: =+B7 -> 150 | C8: =MAX(M8,M23) -> 21.51 | D8: =AVERAGE(N8,N23) -> 9.5 | E8: =MAX(O8,O23) -> 47 | F8: =+F7 -> 50 | G8: =AVERAGE(P8,P23) -> 9.5 | H8: =MAX(Q8,Q23) -> 20 | L8: Feb | M8: 12.36 | N8: 8 | O8: 23 | P8: 8 | Q8: 13
A9: Mar | B9: =+B8 -> 150 | C9: 14.4 | D9: 8 | E9: 266 | F9: =+F8 -> 50 | G9: 8 | H9: 38 | L9: Mar | M9: 9.66 | N9: 8 | O9: 266 | P9: 8 | Q9: 38 | S9: Whole Installation table A5:H18:
A10: Apr | B10: 150 | C10: 14.34 | D10: 7 | E10: 44 | F10: 50 | G10: 7 | H10: 17 | L10: Apr | M10: 12.77 | N10: 7 | O10: 44 | P10: 7 | Q10: 16 | S10: Mean: for 10-min and daily periods use average of all operational combustion lines.
A11: May | B11: 150 | C11: 18.73 | D11: 8 | E11: 49 | F11: 50 | G11: 8 | H11: 29 | L11: May | M11: 10.07 | N11: 7 | O11: 49 | P11: 7 | Q11: 29
A12: Jun | B12: 150 | C12: 17.18 | D12: 8 | E12: 47 | F12: 50 | G12: 8 | H12: 29 | L12: Jun | M12: 16.5 | N12: 8 | O12: 43 | P12: 8 | Q12: 29
A13: Jul | B13: 150 | C13: 70.42 | D13: 15 | E13: 136 | F13: 50 | G13: 15 | H13: 38 | L13: Jul | M13: 70.42 | N13: 19 | O13: 136 | P13: 19 | Q13: 38 | S13: Maximum: for 10-min and daily periods use the highest of all operational combustion lines in any month.
A14: Aug | B14: 150 | C14: 19.43 | D14: 9 | E14: 64 | F14: 50 | G14: 9 | H14: 21 | L14: Aug | M14: 14.75 | N14: 8 | O14: 30 | P14: 8 | Q14: 14
A15: Sep | B15: 150 | C15: 18.68 | D15: 10.5 | E15: 48 | F15: 50 | G15: 10.5 | H15: 46 | L15: Sep | M15: 18.6 | N15: 11 | O15: 48 | P15: 11 | Q15: 46
A16: Oct | B16: 150 | C16: 39.11 | D16: 12.5 | E16: 140 | F16: 50 | G16: 12.5 | H16: 48 | L16: Oct | M16: 22.44 | N16: 12 | O16: 50 | P16: 12 | Q16: 22
A17: Nov | B17: 150 | C17: 24.81 | D17: 9.5 | E17: 85 | F17: 50 | G17: 9.5 | H17: 30 | L17: Nov | M17: 24.81 | N17: 12 | O17: 85 | P17: 12 | Q17: 30
A18: Dec | B18: 150 | C18: 17.03 | D18: 9.5 | E18: 39 | F18: 50 | G18: 9.5 | H18: 17 | L18: Dec | M18: 17.03 | N18: 11 | O18: 25 | P18: 11 | Q18: 17
L19: Annual | M19: =AVERAGE(M7:M18) -> 20.32166667 | N19: =AVERAGE(N7:N18) -> 10 | O19: =MAX(O7:O18) -> 266 | P19: =AVERAGE(P7:P18) -> 10 | Q19: =MAX(Q7:Q18) -> 46
K21: =+A6 -> 2021 | L21: mg/Nm3 | M21: 95%ile 10-min avg maximum | N21: Monthly CO 10-min avg mean | O21: 10-min avg maximum | P21: Monthly daily mean | Q21: Monthly daily maximum
K22: A2 | L22: Jan | M22: 19.02 | N22: 10 | O22: 98 | P22: 10 | Q22: 16
L23: Feb | M23: 21.51 | N23: 11 | O23: 47 | P23: 11 | Q23: 20
L24: Mar | M24: 14.4 | N24: 8 | O24: 31 | P24: 8 | Q24: 14
L25: Apr | M25: 14.34 | N25: 7 | O25: 33 | P25: 7 | Q25: 17
L26: May | M26: 18.73 | N26: 9 | O26: 48 | P26: 9 | Q26: 17
L27: Jun | M27: 17.18 | N27: 8 | O27: 47 | P27: 8 | Q27: 17
L28: Jul | M28: 27.36 | N28: 11 | O28: 64 | P28: 11 | Q28: 21
L29: Aug | M29: 19.43 | N29: 10 | O29: 64 | P29: 10 | Q29: 21
L30: Sep | M30: 18.68 | N30: 10 | O30: 41 | P30: 10 | Q30: 24
L31: Oct | M31: 39.11 | N31: 13 | O31: 140 | P31: 13 | Q31: 48
L32: Nov | M32: 15.59 | N32: 7 | O32: 30 | P32: 7 | Q32: 15
L33: Dec | M33: 14.12 | N33: 8 | O33: 39 | P33: 8 | Q33: 14
L34: Annual | M34: =AVERAGE(M22:M33) -> 19.95583333 | N34: =AVERAGE(N22:N33) -> 9.333333333 | O34: =MAX(O22:O33) -> 140 | P34: =AVERAGE(P22:P33) -> 9.333333333 | Q34: =MAX(Q22:Q33) -> 48
K36: =+A6 -> 2021 | L36: mg/Nm3 | M36: 95%ile 10-min avg maximum | N36: Monthly CO 10-min avg mean | O36: 10-min avg maximum | P36: Monthly daily mean | Q36: Monthly daily maximum
K37: A3 | L37: Jan
L38: Feb
L39: Mar
L40: Apr
L41: May
L42: Jun
L43: Jul
L44: Aug
L45: Sep
L46: Oct
L47: Nov
A48: Comments : | L48: Dec
A49: Environment Agency explanatory note: The 10-minute average ELV is based on the “95th percentile”. In this case this means that 95% of the 10 minute averages in the relevant 24-hour period (i.e. 137) must be below 150 mg/Nm3, and 5% (i.e. 7) are allowed to be any value above 150 mg/Nm3. Whilst we expect operators to minimise CO emissions at all times, it is perfectly acceptable for the value of the maximum 10-minute average to be above 150 mg/Nm3, provided the 95th percentile ELV has been met for that period. | L49: Annual | M49: =AVERAGE(M37:M48) ->  | O49: =MAX(O37:O48) -> 0 | P49: =AVERAGE(P37:P48) ->  | Q49: =MAX(Q37:Q48) -> 0
K51: =+A6 -> 2021 | L51: mg/Nm3 | M51: 95%ile 10-min avg maximum | N51: Monthly CO 10-min avg mean | O51: 10-min avg maximum | P51: Monthly daily mean | Q51: Monthly daily maximum
K52: A4 | L52: Jan
L53: Feb
L54: Mar
L55: Apr
L56: May
L57: Jun
L58: Jul
L59: Aug
L60: Sep
L61: Oct
L62: Nov
L63: Dec
L64: Annual | M64: =AVERAGE(M52:M63) ->  | O64: =MAX(O52:O63) -> 0 | P64: =AVERAGE(P52:P63) ->  | Q64: =MAX(Q52:Q63) -> 0
K66: =+A6 -> 2021 | L66: mg/Nm3 | M66: 95%ile 10-min avg maximum | N66: Monthly CO 10-min avg mean | O66: 10-min avg maximum | P66: Monthly daily mean | Q66: Monthly daily maximum
K67: A5 | L67: Jan
L68: Feb
L69: Mar
L70: Apr
L71: May
L72: Jun
L73: Jul
L74: Aug
L75: Sep
L76: Oct
L77: Nov
L78: Dec
L79: Annual | M79: =AVERAGE(M67:M78) ->  | O79: =MAX(O67:O78) -> 0 | P79: =AVERAGE(P67:P78) ->  | Q79: =MAX(Q67:Q78) -> 0

Sheet NH3
A1: =+'Cover Page'!$B$29 -> Annual Performance Report 2021 | E1: =+'Cover Page'!$B$33 -> Wolverhampton Energy from Waste Facility
A3: Monitoring of Ammnonia emissions | D3: Whole Installation | G3: See Notes in Cell Q3 | J3: =+A3 -> Monitoring of Ammnonia emissions | N3: Per Combustion Line | Q3: Notes:
Q4: User to add logic to complete Whole installation, Table A5:G18. From the data in Per Combustion Line, Table J6:O79, subject to No. of lines installed
A5: mg/Nm3 | B5: 1/2 Hourly Reference Periods | E5: Daily Reference Periods
A6: =+'Cover Page'!C39 -> 2021 | B6: 1/2 hourly NH3 ELV | C6: Monthly 1/2 hourly mean | D6: Highest 1/2 hourly maximum | E6: Daily NH3 ELV | F6: Monthly daily mean | G6: Highest daily maximum | J6: =+A6 -> 2021 | K6: mg/Nm3 | L6: Monthly 1/2 hourly mean | M6: Monthly 1/2 hourly maximum | N6: Monthly daily mean | O6: Monthly daily maximum
A7: Jan | B7: 0 | C7: =AVERAGE(L7,L22) -> 1.5 | D7: =MAX(M7,M22) -> 115 | E7: 10 | F7: =AVERAGE(N7,N22) -> 1.5 | G7: =MAX(O7,O22) -> 17 | J7: A1 | K7: Jan | L7: 2 | M7: 102 | N7: 2 | O7: 17
A8: Feb | B8: =+B7 -> 0 | C8: =AVERAGE(L8,L23) -> 0.5 | D8: =MAX(M8,M23) -> 26 | E8: =+E7 -> 10 | F8: =AVERAGE(N8,N23) -> 0.5 | G8: =MAX(O8,O23) -> 3 | K8: Feb | L8: 1 | M8: 24 | N8: 1 | O8: 2
A9: Mar | B9: =+B8 -> 0 | C9: 0 | D9: 41 | E9: =+E8 -> 10 | F9: 0 | G9: 1 | K9: Mar | L9: 0 | M9: 41 | N9: 0 | O9: 1 | Q9: Whole Installation table A5:G18:
A10: Apr | B10: 0 | C10: 0.5 | D10: 36 | E10: 10 | F10: 0.5 | G10: 4 | K10: Apr | L10: 0 | M10: 31 | N10: 0 | O10: 1 | Q10: Mean: for 1/2 hourly and daily periods calculate mean of values across all operational combustion lines for the month
A11: May | B11: 0 | C11: 2 | D11: 38 | E11: 10 | F11: 2 | G11: 9 | K11: May | L11: 0 | M11: 11 | N11: 0 | O11: 1
A12: Jun | B12: 0 | C12: 1.5 | D12: 46 | E12: 10 | F12: 1.5 | G12: 7 | K12: Jun | L12: 1 | M12: 13 | N12: 1 | O12: 1
A13: Jul | B13: 0 | C13: 2 | D13: 93 | E13: 10 | F13: 2 | G13: 11 | K13: Jul | L13: 2 | M13: 93 | N13: 2 | O13: 11 | Q13: Maximum: for 1/2 hourly and daily periods use the highest value across all operational combustion lines for the month
A14: Aug | B14: 0 | C14: 2 | D14: 33 | E14: 10 | F14: 2 | G14: 9 | K14: Aug | L14: 0 | M14: 12 | N14: 0 | O14: 1
A15: Sep | B15: 0 | C15: 2 | D15: 31 | E15: 10 | F15: 2 | G15: 8 | K15: Sep | L15: 0 | M15: 14 | N15: 0 | O15: 1
A16: Oct | B16: 0 | C16: 1.5 | D16: 73 | E16: 10 | F16: 1.5 | G16: 16 | K16: Oct | L16: 0 | M16: 14 | N16: 0 | O16: 1
A17: Nov | B17: 0 | C17: 1 | D17: 84 | E17: 10 | F17: 1 | G17: 9 | K17: Nov | L17: 1 | M17: 31 | N17: 1 | O17: 7
A18: Dec | B18: 0 | C18: =AVERAGE(L18,L33) -> 1.5 | D18: =MAX(M18,M33) -> 110 | E18: 10 | F18: 1.5 | G18: 8 | K18: Dec | L18: 1 | M18: 30 | N18: 1 | O18: 2
K19: Annual | L19: =AVERAGE(L7:L18) -> 0.6666666667 | M19: =MAX(M7:M18) -> 102 | N19: =AVERAGE(N7:N18) -> 0.6666666667 | O19: =MAX(O7:O18) -> 17
J21: =+A6 -> 2021 | K21: mg/Nm3 | L21: Monthly 1/2 hourly mean | M21: Monthly 1/2 hourly maximum | N21: Monthly daily mean | O21: Monthly daily maximum
J22: A2 | K22: Jan | L22: 1 | M22: 115 | N22: 1 | O22: 5
K23: Feb | L23: 0 | M23: 26 | N23: 0 | O23: 3
K24: Mar | L24: 0 | M24: 7 | N24: 0 | O24: 1
K25: Apr | L25: 1 | M25: 36 | N25: 1 | O25: 4
K26: May | L26: 4 | M26: 38 | N26: 4 | O26: 9
K27: Jun | L27: 2 | M27: 46 | N27: 2 | O27: 7
K28: Jul | L28: 2 | M28: 74 | N28: 2 | O28: 7
K29: Aug | L29: 4 | M29: 33 | N29: 4 | O29: 9
K30: Sep | L30: 4 | M30: 31 | N30: 4 | O30: 8
K31: Oct | L31: 3 | M31: 73 | N31: 3 | O31: 16
K32: Nov | L32: 1 | M32: 84 | N32: 1 | O32: 9
K33: Dec | L33: 2 | M33: 110 | N33: 2 | O33: 8
K34: Annual | L34: =AVERAGE(L22:L33) -> 2 | M34: =MAX(M22:M33) -> 115 | N34: =AVERAGE(N22:N33) -> 2 | O34: =MAX(O22:O33) -> 16
J36: =+A6 -> 2021 | K36: mg/Nm3 | L36: Monthly 1/2 hourly mean | M36: Monthly 1/2 hourly maximum | N36: Monthly daily mean | O36: Monthly daily maximum
J37: A3 | K37: Jan
K38: Feb
K39: Mar
K40: Apr
K41: May
K42: Jun
K43: Jul
K44: Aug
K45: Sep
K46: Oct
K47: Nov
A48: Comments : | K48: Dec
A49: An indicated ELV value of zero in the table above means that no ammonia limit is set in the permit. | K49: Annual | L49: =AVERAGE(L37:L48) ->  | M49: =MAX(M37:M48) -> 0 | N49: =AVERAGE(N37:N48) ->  | O49: =MAX(O37:O48) -> 0
J51: =+A6 -> 2021 | K51: mg/Nm3 | L51: Monthly 1/2 hourly mean | M51: Monthly 1/2 hourly maximum | N51: Monthly daily mean | O51: Monthly daily maximum
J52: A4 | K52: Jan
K53: Feb
K54: Mar
K55: Apr
K56: May
K57: Jun
K58: Jul
K59: Aug
K60: Sep
K61: Oct
K62: Nov
K63: Dec
K64: Annual | L64: =AVERAGE(L52:L63) ->  | M64: =MAX(M52:M63) -> 0 | N64: =AVERAGE(N52:N63) ->  | O64: =MAX(O52:O63) -> 0
J66: =+A6 -> 2021 | K66: mg/Nm3 | L66: Monthly 1/2 hourly mean | M66: Monthly 1/2 hourly maximum | N66: Monthly daily mean | O66: Monthly daily maximum
J67: A5 | K67: Jan
K68: Feb
K69: Mar
K70: Apr
K71: May
K72: Jun
K73: Jul
K74: Aug
K75: Sep
K76: Oct
K77: Nov
K78: Dec
K79: Annual | L79: =AVERAGE(L67:L78) ->  | M79: =MAX(M67:M78) -> 0 | N79: =AVERAGE(N67:N78) ->  | O79: =MAX(O67:O78) -> 0
